fUSD/lending_fUSD_20250401
["ID","MTS","AMOUNT","RATE_DAILY","PERIOD"]
[356965796,1743510045440,500.0,0.00049498,120]
[356965797,1743510045500,1060.0,0.0005,120]
[356965798,1743510045693,1060.0,0.0005,120]
[356965799,1743510045749,500.0,0.00049772,120]
[356965800,1743510045880,1060.0,0.0005,120]
[356965801,1743510046048,1060.0,0.0005,120]
[356965802,1743510046214,1060.0,0.0005,120]
[356965804,1743510046401,1060.0,0.0005,120]
[356965805,1743510046994,1060.0,0.0005,120]
[356965806,1743510047216,1060.0,0.0005,120]
[356965807,1743510047550,1060.0,0.0005,120]
[356965808,1743510047865,1060.0,0.0005,120]
[356965809,1743510048086,1060.0,0.0005,120]
[356965810,1743510048302,1060.0,0.0005,120]
[356965811,1743510048485,500.0,0.00049498,120]
[356965812,1743510048546,1060.0,0.0005,120]
[356965813,1743510048940,1060.0,0.0005,120]
[356965814,1743510049161,1060.0,0.0005,120]
[356965815,1743510049599,1060.0,0.0005,120]
[356965816,1743510049784,1060.0,0.0005,120]
[356965817,1743510049980,1060.0,0.0005,120]
[356965818,1743510050081,500.0,0.00049489,120]
[356965819,1743510050196,1060.0,0.0005,120]
[356965820,1743510050382,1072.78677469,0.0005,120]
[356965821,1743510050539,1000000.0,0.0005,120]
[356965822,1743510050727,500.0,0.00049763,120]
[356965823,1743510050793,500.0,0.00049488,120]
[356965824,1743510051027,500.0,0.00049762,120]
[356965825,1743510051332,150.0,0.0005,120]
[356965826,1743510051561,150.0,0.0005,120]
[356965827,1743510052960,207.19214915,0.0005,120]
[356965828,1743510054783,150.0,0.0005,120]
[356965829,1743510054983,150.0,0.0005,120]
[356965830,1743510055203,150.0,0.0005,120]
[356965831,1743510055630,207.3374947,0.0005,120]
[356965832,1743510059272,500.0,0.00049488,120]
[356965833,1743510059955,500.0,0.00049498,120]
[356965834,1743510060223,500.0,0.00049772,120]
[356965836,1743510064402,1000000.0,0.0005,120]
[356965837,1743510065894,402.93246567,0.0005,120]
[356965838,1743510066174,151.0,0.0005,120]
[356965839,1743510066626,641.58527232,0.00049498,120]
[356965840,1743510067497,500.0,0.00049498,120]
[356965841,1743510067875,500.0,0.00049772,120]
[356965843,1743510070222,500.0,0.00049488,120]
[356965844,1743510070448,500.0,0.00049762,120]
[356965845,1743510072252,500.0,0.00049488,120]
[356965846,1743510072495,500.0,0.00049762,120]
[356965847,1743510075485,478.52,0.00049489,120]
[356965848,1743510076151,1211.85,0.00049488,120]
[356965849,1743510076380,1211.85,0.00049762,120]
[356965850,1743510077393,500.0,0.00049498,120]
[356965851,1743510081134,358.25200895,0.00049488,120]
[356965852,1743510081352,500.0,0.00049498,120]
[356965853,1743510083926,369.25,0.00049498,120]
[356965854,1743510083989,500.0,0.00049498,120]
[356965855,1743510084062,849526.38595035,0.0005,120]
[356965875,1743510337715,999.13673257,8e-05,2]
[356965878,1743510396378,-257.53131285,0.00015,2]
[356965882,1743510478074,659.67840369,0.0001,2]
[356965883,1743510478099,3686.62851723,0.0001,2]
[356965894,1743510530818,-218.7935,0.0001489,2]
[356965913,1743510632360,-38.73781285,0.0001489,2]
[356965914,1743510632369,-953.58827701,0.00015,2]
[356965915,1743510632383,-1397.7819348,0.00015,2]
[356965916,1743510632396,-2441.56500959,0.00015,2]
[356965917,1743510632462,-1334.0,0.00015,2]
[356965918,1743510632473,-852.45714,0.00015,2]
[356965919,1743510632522,-134650.45669406,0.00015,2]
[356966390,1743510637641,-454866.17640202,0.00015,2]
[356966391,1743510637652,-151.12329104,0.000165,2]
[356966393,1743510637661,-337.20447558,0.000165,2]
[356966395,1743510637671,-2471.64730092,0.00023128,2]
[356966397,1743510637680,-151.43,0.0002319,2]
[356966399,1743510637689,-50167.94115203,0.000232,2]
[356966401,1743510637699,-200.0,0.000235,2]
[356966403,1743510637708,-51525.18999636,0.00024,2]
[356966405,1743510637718,-981.3181758,0.00024,2]
[356966406,1743510637728,-40662.93325222,0.00024,2]
[356966408,1743510637739,-783.2264621,0.0002402,2]
[356966410,1743510637747,-405.46823938,0.0002421,2]
[356966412,1743510637756,-3552.88123929,0.0002421,2]
[356966414,1743510637766,-2471.64730084,0.00026075,2]
[356966416,1743510637775,-152.0685,0.00026243,2]
[356966418,1743510637785,-2471.64730084,0.00029022,2]
[356966420,1743510637794,-934.28,0.00029335,2]
[356966422,1743510637805,-75419.78618313,0.000299,2]
[356966424,1743510637818,-228.0328253,0.0002999,2]
[356966426,1743510637827,-2271.737596,0.0003,2]
[356966428,1743510637836,-29420.73944627,0.0003,2]
[356966430,1743510637845,-205050.66318435,0.0003,2]
[356966432,1743510637854,-1167.93957393,0.0003,2]
[356966434,1743510637863,-254.13283094,0.0003,2]
[356966435,1743510637874,-1743.81107717,0.0003,2]
[356966437,1743510637883,-1539.83188288,0.0003,2]
[356966439,1743510637893,-212.0,0.0003,2]
[356966442,1743510637903,-7459.81073196,0.000306,2]
[356966443,1743510637912,-299.99,0.000306,12]
[356966445,1743510637921,-23900.0,0.00031205,2]
[356966447,1743510637930,-2500.0,0.0003121,2]
[356966449,1743510637940,-934.28,0.00031599,2]
[356966451,1743510637950,-502.71434233,0.000318,2]
[356966453,1743510637959,-2471.64730084,0.00031969,2]
[356966455,1743510637969,-193.61970565,0.000322,2]
[356966457,1743510637978,-212.0,0.00033,2]
[356966459,1743510637987,-215.58440507,0.000331,2]
[356966461,1743510637997,-423.87125676,0.00033161,5]
[356966463,1743510638006,-934.28,0.00033863,2]
[356966465,1743510638015,-5858.41268425,0.0003399,2]
[356966467,1743510638024,-152.5,0.00034,2]
[356966469,1743510638034,-289.30493336,0.00034134,2]
[356966472,1743510638044,-209318.96944134,0.00034144,2]
[356966474,1743510638053,-150.62984859,0.00034144,2]
[356966476,1743510638062,-248.01672598,0.00034144,2]
[356966478,1743510638071,-163.68318881,0.00034144,2]
[356966480,1743510638080,-1256.06781321,0.00034144,2]
[356966482,1743510638089,-7684.95615516,0.00034144,2]
[356966484,1743510638099,-1036.78755763,0.00034144,2]
[356966486,1743510638108,-592.13220611,0.00034144,2]
[356966488,1743510638117,-9197.9889528,0.00034144,2]
[356966490,1743510638126,-1305.7410437,0.00034144,2]
[356966492,1743510638135,-3405.55712178,0.00034144,2]
[356966494,1743510638145,-39500.14651356,0.00034144,2]
[356966496,1743510638154,-10210.27214616,0.00034144,2]
[356966498,1743510638163,-1912.67957517,0.00034144,2]
[356966500,1743510638172,-183.24109577,0.00034144,2]
[356966502,1743510638181,-643.0,0.00034144,2]
[356966503,1743510638190,-965.94664947,0.00034144,2]
[356966505,1743510638201,-4230.5049876,0.00034144,2]
[356966507,1743510638211,-922.89879394,0.00034144,2]
[356966509,1743510638220,-13081.31908827,0.00034144,2]
[356966511,1743510638230,-222.87176896,0.00034144,2]
[356966513,1743510638239,-560.91905545,0.00034144,2]
[356966515,1743510638248,-150.0,0.00034144,2]
[356966517,1743510638257,-7743.96038354,0.00034144,2]
[356966519,1743510638266,-604.68800473,0.00034144,2]
[356966521,1743510638275,-623.81642842,0.00034144,2]
[356966523,1743510638284,-213.84928348,0.00034144,2]
[356966525,1743510638293,-41478.53022227,0.00034144,2]
[356966527,1743510638302,-8111.50988653,0.00034144,2]
[356966529,1743510638311,-228.78734094,0.00034144,2]
[356966531,1743510638320,-10010.07918468,0.00034144,2]
[356966532,1743510638328,-558.59681421,0.00034144,2]
[356966534,1743510638337,-151.0,0.00034144,7]
[356966536,1743510638346,-226.0,0.00034144,7]
[356966538,1743510638354,-151.0,0.00034144,7]
[356966540,1743510638363,-500.0,0.00034908,5]
[356966542,1743510638372,-500.0,0.00034908,5]
[356966544,1743510638381,-2471.64730084,0.00034916,2]
[356966546,1743510638389,-1000.0,0.00035725,2]
[356966548,1743510638399,-934.28,0.00036127,2]
[356966550,1743510638409,-2471.64730084,0.00037862,2]
[356966552,1743510638418,-300.0,0.00038,2]
[356966554,1743510638427,-300.0,0.0003838,2]
[356966556,1743510638436,-934.28,0.0003839,2]
[356966558,1743510638445,-300.0,0.0003876,2]
[356966560,1743510638455,-5858.41268425,0.0003899,3]
[356966562,1743510638464,-15235.86000704,0.00039,5]
[356966564,1743510638473,-300.0,0.0003914,2]
[356966566,1743510638483,-300.0,0.0003952,2]
[356966568,1743510638492,-450.0,0.000399,4]
[356966570,1743510638501,-5858.41268425,0.0003999,3]
[356966572,1743510638511,-8332.76333996,0.0004,2]
[356966574,1743510638520,-126873.03079394,0.0004,2]
[356966576,1743510638532,-73500.07213404,0.0004,2]
[356966578,1743510638541,-151.0,0.0004,14]
[356966580,1743510638550,-236.791616,0.0004,14]
[356966582,1743510638559,-1000.0,0.0004019,2]
[356966584,1743510638568,-450.0,0.0004028,4]
[356966586,1743510638577,-1000.0,0.00040387,5]
[356966588,1743510638587,-434.95403706,0.00040387,5]
[356966590,1743510638595,-934.28,0.00040654,2]
[356966592,1743510638605,-450.0,0.0004066,4]
[356966594,1743510638614,-2471.64730084,0.00040809,15]
[356966596,1743510638623,-67584.90827017,0.0004083,2]
[356966598,1743510638632,-150.0,0.0004104,4]
[356966600,1743510638641,-17575.2380527,0.0004199,3]
[356966602,1743510638650,-41046.94124892,0.00042,2]
[356966604,1743510638659,-1330.52510693,0.0004201,2]
[356966605,1743510638668,-934.28,0.00042918,2]
[356966607,1743510638678,-2471.64730084,0.00043756,15]
[356966609,1743510638687,-1000.0,0.00044656,2]
[356966611,1743510638696,-151.0,0.00045,120]
[356966613,1743510638706,-151.0,0.00045,120]
[356966616,1743510638715,-934.28,0.00045182,2]
[356966617,1743510638728,-334.0,0.000462,5]
[356966619,1743510638737,-2471.64730084,0.00046703,15]
[356966622,1743510638747,-41008.8887897,0.0004699,3]
[356966624,1743510638756,-82349.48360413,0.00047,2]
[356966625,1743510638766,-151.0,0.00047,14]
[356966627,1743510638776,-5858.41268425,0.00047307,3]
[356966629,1743510638786,-8651.0,0.00047316,2]
[356966631,1743510638795,-1579.46,0.00047317,120]
[356966633,1743510638805,-934.28,0.00047446,2]
[356966635,1743510638814,-217.62,0.0004787,120]
[356966637,1743510638823,-154.03,0.00048119,2]
[356966639,1743510638832,-1000.0,0.00048269,120]
[356966641,1743510638842,-276.09,0.00048291,2]
[356966643,1743510638851,-200.0,0.00048345,2]
[356966645,1743510638860,-246.83,0.00048379,2]
[356966647,1743510638870,-150.0,0.000484,30]
[356966649,1743510638879,-417.54,0.000484,30]
[356966651,1743510638889,-150.0,0.000484,30]
[356966653,1743510638898,-150.0,0.000484,30]
[356966655,1743510638907,-228.52,0.00048412,2]
[356966657,1743510638917,-485.71278829,0.000485,30]
[356966659,1743510638926,-11716.8253685,0.00048655,4]
[356966661,1743510638935,-2040.0,0.0004875,2]
[356966663,1743510638945,-643.0,0.0004875,2]
[356966665,1743510638954,-1283.0,0.0004875,2]
[356966667,1743510638964,-151.0,0.0004875,2]
[356966669,1743510638973,-151.0,0.0004875,2]
[356966671,1743510638982,-1420.0,0.0004875,2]
[356966673,1743510638992,-570.0,0.0004875,2]
[356966675,1743510639001,-3949.0,0.0004875,2]
[356966677,1743510639010,-5858.41268425,0.00048784,4]
[356966679,1743510639020,-1838.65,0.00048794,2]
[356966681,1743510639029,-1349.7,0.00048836,2]
[356966683,1743510639039,-162.07,0.00048877,2]
[356966685,1743510639048,-150.0,0.0004899,120]
[356966687,1743510639056,-150.0,0.0004899,120]
[356966689,1743510639065,-1025.0,0.00049,12]
[356966690,1743510639074,-1009.0,0.00049,30]
[356966693,1743510639084,-1000.0,0.00049,30]
[356966694,1743510639093,-1000.0,0.00049,30]
[356966696,1743510639103,-1000.0,0.00049121,2]
[356966698,1743510639112,-19610.59821064,0.000492,38]
[356966700,1743510639121,-21070.40949476,0.00049244,120]
[356966702,1743510639131,-529.3274,0.000493,2]
[356966704,1743510639140,-1000.0,0.000493,2]
[356966706,1743510639149,-500.0,0.00049315,120]
[356966708,1743510639158,-500.0,0.00049315,120]
[356966710,1743510639167,-500.0,0.00049315,120]
[356966712,1743510639176,-500.0,0.00049315,120]
[356966714,1743510639186,-500.0,0.00049315,120]
[356966716,1743510639195,-500.0,0.00049315,120]
[356966718,1743510639205,-500.0,0.00049315,120]
[356966720,1743510639215,-500.0,0.00049315,120]
[356966722,1743510639224,-500.0,0.00049315,120]
[356966724,1743510639233,-500.0,0.00049315,120]
[356966726,1743510639243,-500.0,0.00049315,120]
[356966728,1743510639252,-500.0,0.00049315,120]
[356966730,1743510639262,-500.0,0.00049315,120]
[356966732,1743510639271,-500.0,0.00049315,120]
[356966734,1743510639281,-500.0,0.00049315,120]
[356966736,1743510639290,-500.0,0.00049315,120]
[356966738,1743510639300,-500.0,0.00049315,120]
[356966740,1743510639309,-500.0,0.00049315,120]
[356966742,1743510639319,-500.0,0.00049315,120]
[356966744,1743510639328,-500.0,0.00049315,120]
[356966758,1743510639442,-500.0,0.00049315,120]
[356966760,1743510639468,-500.0,0.00049315,120]
[356966762,1743510639477,-1624.11,0.00049315,120]
[356966764,1743510639487,-500.0,0.00049315,120]
[356966766,1743510639497,-500.0,0.00049315,120]
[356966768,1743510639507,-500.0,0.00049315,120]
[356966770,1743510639516,-500.0,0.00049315,120]
[356966772,1743510639526,-500.0,0.00049315,120]
[356966774,1743510639535,-500.0,0.00049315,120]
[356966776,1743510639545,-500.0,0.00049315,120]
[356966778,1743510639555,-994.8,0.00049315,2]
[356966780,1743510639564,-500.0,0.00049315,120]
[356966782,1743510639573,-500.0,0.00049315,120]
[356966784,1743510639582,-500.0,0.00049315,120]
[356966786,1743510639592,-500.0,0.00049315,120]
[356966788,1743510639601,-500.0,0.00049315,120]
[356966790,1743510639611,-500.0,0.00049315,120]
[356966792,1743510639620,-500.0,0.00049315,120]
[356966794,1743510639629,-500.0,0.00049315,120]
[356966796,1743510639638,-500.0,0.00049315,120]
[356966797,1743510639647,-500.0,0.00049315,120]
[356966799,1743510639657,-500.0,0.00049315,120]
[356966802,1743510639668,-500.0,0.00049315,120]
[356966803,1743510639678,-500.0,0.00049315,120]
[356966805,1743510639688,-500.0,0.00049315,120]
[356966807,1743510639697,-500.0,0.00049315,120]
[356966809,1743510639707,-500.0,0.00049315,120]
[356966811,1743510639719,-500.0,0.00049315,120]
[356966813,1743510639729,-500.0,0.00049315,120]
[356966815,1743510639739,-500.0,0.00049315,120]
[356966818,1743510639750,-500.0,0.00049315,120]
[356966820,1743510639760,-500.0,0.00049315,120]
[356966822,1743510639771,-500.0,0.00049315,120]
[356966824,1743510639782,-167.473304,0.00049315,120]
[356966825,1743510639792,-500.0,0.00049315,120]
[356966827,1743510639802,-500.0,0.00049315,2]
[356966830,1743510639812,-500.0,0.00049315,120]
[356966831,1743510639822,-5858.41268425,0.00049388,4]
[356966833,1743510639831,-1621.69964573,0.00049389,15]
[356966835,1743510639840,-534.0207,0.00049389,2]
[356966837,1743510639850,-29292.0634213,0.0004939,4]
[356966839,1743510639859,-500.0,0.0004939,2]
[356966841,1743510639869,-2500.0,0.00049398,2]
[356966843,1743510639879,-6335.72216441,0.00049399,2]
[356966845,1743510639889,-150.0,0.00049399,120]
[356966847,1743510639899,-10087.54875064,0.000494,30]
[356966848,1743510639910,-37573.1235,0.000494,2]
[356966849,1743510639920,-328.9258,0.000494,2]
[356966850,1743510639930,-1000.0,0.000494,2]
[356966851,1743510639938,-3688.54692654,0.000494,2]
[356966852,1743510639947,-163.97522962,0.000494,2]
[356966853,1743510639956,-284.18424721,0.000494,2]
[356966854,1743510639964,-1621.69964571,0.00049446,15]
[356966855,1743510639972,-500.0,0.00049473,10]
[356966856,1743510639980,-64442.5395267,0.00049478,4]
[356966857,1743510639987,-151.0,0.00049478,120]
[356966858,1743510639994,-5858.41268425,0.00049478,4]
[356966860,1743510640003,-5858.41268425,0.00049479,4]
[356966862,1743510640012,-11716.8253685,0.0004948,4]
[356966864,1743510640022,-500.0,0.00049488,2]
[356966866,1743510640032,-500.0,0.00049488,30]
[356966868,1743510640041,-500.0,0.00049488,120]
[356966870,1743510640051,-500.0,0.00049488,120]
[356966873,1743510640060,-500.0,0.00049488,120]
[356966875,1743510640069,-500.0,0.00049488,120]
[356966877,1743510640079,-619.02815153,0.00049488,120]
[356966879,1743510640089,-515.40864534,0.00049488,120]
[356966881,1743510640098,-500.0,0.00049488,120]
[356966883,1743510640108,-500.0,0.00049488,120]
[356966885,1743510640118,-500.0,0.00049488,120]
[356966887,1743510640127,-500.0,0.00049488,120]
[356966889,1743510640137,-533.06466212,0.00049488,120]
[356966891,1743510640146,-500.0,0.00049488,120]
[356966893,1743510640156,-1646.9,0.00049488,12]
[356966896,1743510640166,-500.0,0.00049488,120]
[356966899,1743510640176,-500.0,0.00049488,120]
[356966901,1743510640185,-500.0,0.00049488,120]
[356966903,1743510640195,-500.0,0.00049488,120]
[356966906,1743510640206,-500.0,0.00049488,120]
[356966907,1743510640215,-500.0,0.00049488,120]
[356966909,1743510640225,-500.0,0.00049488,120]
[356966911,1743510640234,-500.0,0.00049488,120]
[356966913,1743510640243,-500.0,0.00049488,120]
[356966915,1743510640253,-500.0,0.00049488,120]
[356966917,1743510640262,-500.0,0.00049488,120]
[356966919,1743510640272,-500.0,0.00049488,120]
[356966921,1743510640281,-500.0,0.00049488,120]
[356966923,1743510640291,-500.0,0.00049488,120]
[356966925,1743510640300,-500.0,0.00049488,120]
[356966927,1743510640309,-500.0,0.00049488,120]
[356966929,1743510640318,-2498.22,0.00049488,120]
[356966931,1743510640328,-500.0,0.00049488,120]
[356966933,1743510640338,-500.0,0.00049488,120]
[356966935,1743510640347,-500.0,0.00049488,120]
[356966937,1743510640356,-500.0,0.00049488,120]
[356966939,1743510640365,-500.0,0.00049488,120]
[356966941,1743510640376,-500.0,0.00049488,120]
[356966943,1743510640385,-500.0,0.00049488,120]
[356966945,1743510640395,-500.0,0.00049488,120]
[356966947,1743510640404,-500.0,0.00049488,120]
[356966949,1743510640413,-500.0,0.00049488,120]
[356966951,1743510640422,-500.0,0.00049488,120]
[356966953,1743510640431,-150.0,0.00049488,120]
[356966955,1743510640441,-500.0,0.00049488,120]
[356966957,1743510640451,-500.0,0.00049488,120]
[356966959,1743510640461,-1890.5,0.00049488,30]
[356966961,1743510640470,-20586.3051636,0.00049488,7]
[356967003,1743510640871,-900.48021148,0.0004875,2]
[356967558,1743510646304,-116.51978852,0.0004875,2]
[356967560,1743510646314,-500.0,0.00049315,120]
[356967561,1743510646323,-500.0,0.00049315,120]
[356967563,1743510646333,-500.0,0.00049315,120]
[356967565,1743510646342,-500.0,0.00049315,120]
[356967567,1743510646352,-500.0,0.00049315,120]
[356967569,1743510646361,-500.0,0.00049315,120]
[356967572,1743510646371,-500.0,0.00049315,120]
[356967574,1743510646380,-500.0,0.00049315,120]
[356967588,1743510646503,-500.0,0.00049315,2]
[356967590,1743510646518,-500.0,0.00049315,120]
[356967592,1743510646527,-500.0,0.00049315,120]
[356967594,1743510646536,-500.0,0.00049315,120]
[356967596,1743510646547,-500.0,0.00049315,120]
[356967598,1743510646556,-500.0,0.00049315,120]
[356967600,1743510646565,-1310.30064795,0.00049488,7]
[356969447,1743511831464,-175.26,0.00026849,2]
[356969448,1743511831474,-155.94,0.00026849,2]
[356969449,1743511831483,-250.0,0.00027,2]
[356969450,1743511831492,-300.0,0.00029,2]
[356969451,1743511831501,-350.0,0.00031,2]
[356969452,1743511831511,-175.26,0.00032646,2]
[356969453,1743511831521,-400.0,0.00033,2]
[356969454,1743511831530,-163.33020747,0.000348,2]
[356969455,1743511831540,-450.0,0.00035,2]
[356969456,1743511831549,-500.0,0.00037,2]
[356969457,1743511831558,-175.26,0.00038443,2]
[356969458,1743511831567,-550.0,0.00039,2]
[356969459,1743511831576,-600.0,0.00041,2]
[356969460,1743511831586,-150.0,0.00041989,120]
[356969461,1743511831595,-150.0,0.00043359,120]
[356969462,1743511831605,-175.26,0.00044239,2]
[356969463,1743511831614,-513.85,0.00044727,2]
[356969464,1743511831623,-150.0,0.00044729,120]
[356969465,1743511831633,-891.74118673,0.000463,7]
[356969466,1743511831645,-353.25881327,0.000463,7]
[356969467,1743511831655,-63.51789804,0.00046334,2]
[356969468,1743511831667,-798.32798818,0.00046334,2]
[356969469,1743511831682,-636.84170514,0.00046334,2]
[356969470,1743511831693,-6298.50720051,0.00046334,2]
[356969471,1743511831705,-533.22015203,0.00046334,2]
[356969472,1743511831720,-450.653,0.00046334,2]
[356969473,1743511831735,-8498.7220561,0.00046334,2]
[356969474,1743511831744,-250.0,0.00046358,2]
[356969475,1743511831754,-154.03,0.00046374,2]
[356969476,1743511831765,-513.85,0.00046991,2]
[356969477,1743511831774,-150.0,0.00048182,2]
[356969478,1743511831783,-162.62,0.00048395,120]
[356969479,1743511831793,-325.53,0.00048432,2]
[356969480,1743511831803,-164.32,0.00048457,2]
[356969481,1743511831813,-2000.0,0.00049,2]
[356969482,1743511831823,-214.94,0.00049,120]
[356969483,1743511831832,-350.44,0.00049,30]
[356969484,1743511831843,-470.0389477,0.000492,38]
[356969485,1743511831855,-684.71908266,0.000492,38]
[356969486,1743511831867,-721.47688014,0.000492,38]
[356969487,1743511831899,-458.11714593,0.000492,38]
[356969488,1743511831911,-2400.16032161,0.000492,38]
[356969489,1743511831922,-2736.18762196,0.000492,38]
[356969490,1743511831932,-1399.2561904,0.00049215,15]
[356969491,1743511831941,-395.61317306,0.00049215,21]
[356969492,1743511831950,-301.4598,0.00049215,2]
[356969493,1743511831959,-2500.0,0.00049215,2]
[356969494,1743511831969,-513.85,0.00049255,2]
[356969495,1743511831978,-236.972,0.00049291,86]
[356969496,1743511831987,-1399.2561904,0.00049291,15]
[356969497,1743511831996,-1954.63784139,0.00049305,4]
[356970049,1743511837438,-708.52863662,0.00049305,4]
[356970050,1743511837450,-44827.83062319,0.00049305,4]
[356970051,1743511837459,-3642.08,0.00049305,2]
[356970052,1743511837468,-2998.91316721,0.0004931,120]
[356970053,1743511837477,-500.0,0.00049315,120]
[356970054,1743511837486,-500.0,0.00049315,120]
[356970055,1743511837495,-500.0,0.00049315,120]
[356970056,1743511837504,-500.0,0.00049315,120]
[356970057,1743511837513,-500.0,0.00049315,120]
[356970058,1743511837523,-500.0,0.00049315,120]
[356970059,1743511837532,-500.0,0.00049315,120]
[356970060,1743511837541,-500.0,0.00049315,120]
[356970062,1743511837550,-500.0,0.00049315,120]
[356970063,1743511837559,-500.0,0.00049315,120]
[356970065,1743511837569,-500.0,0.00049315,120]
[356970067,1743511837578,-500.0,0.00049315,120]
[356970069,1743511837587,-500.0,0.00049315,120]
[356970071,1743511837596,-500.0,0.00049315,120]
[356970073,1743511837605,-294.00217181,0.00049315,120]
[356970075,1743511837614,-500.0,0.00049315,120]
[356970077,1743511837623,-500.0,0.00049315,120]
[356970079,1743511837632,-500.0,0.00049315,120]
[356970081,1743511837642,-500.0,0.00049315,120]
[356970083,1743511837652,-500.0,0.00049315,120]
[356970085,1743511837661,-500.0,0.00049315,120]
[356970087,1743511837670,-519.01938543,0.00049315,120]
[356970089,1743511837680,-500.0,0.00049315,120]
[356970091,1743511837689,-500.0,0.00049315,120]
[356970093,1743511837698,-500.0,0.00049315,120]
[356970095,1743511837707,-500.0,0.00049315,120]
[356970097,1743511837716,-500.0,0.00049315,120]
[356970099,1743511837726,-515.74112988,0.00049315,120]
[356970101,1743511837735,-500.0,0.00049315,120]
[356970103,1743511837744,-500.0,0.00049315,120]
[356970105,1743511837753,-500.0,0.00049315,120]
[356970107,1743511837762,-500.0,0.00049315,120]
[356970109,1743511837772,-500.0,0.00049315,120]
[356970111,1743511837781,-500.0,0.00049315,120]
[356970113,1743511837790,-500.0,0.00049315,120]
[356970115,1743511837800,-500.0,0.00049315,120]
[356970117,1743511837809,-500.0,0.00049315,120]
[356970119,1743511837818,-500.0,0.00049315,120]
[356970121,1743511837827,-500.0,0.00049315,120]
[356970123,1743511837836,-521.18679879,0.00049315,120]
[356970125,1743511837845,-500.0,0.00049315,120]
[356970127,1743511837855,-439.72853175,0.00049315,120]
[356970129,1743511837864,-500.0,0.00049315,120]
[356970131,1743511837873,-522.89824911,0.00049315,120]
[356970133,1743511837882,-500.0,0.00049315,120]
[356970135,1743511837891,-500.0,0.00049315,120]
[356970137,1743511837900,-500.0,0.00049315,120]
[356970139,1743511837910,-500.0,0.00049315,120]
[356970141,1743511837920,-500.0,0.00049315,120]
[356970143,1743511837929,-500.0,0.00049315,120]
[356970145,1743511837938,-500.0,0.00049315,120]
[356970147,1743511837949,-500.0,0.00049315,120]
[356970149,1743511837958,-500.0,0.00049315,120]
[356970151,1743511837967,-500.0,0.00049315,120]
[356970153,1743511837976,-526.40415184,0.00049315,120]
[356970155,1743511837986,-500.0,0.00049315,120]
[356970157,1743511837995,-500.0,0.00049315,120]
[356970159,1743511838004,-483.2858372,0.00049315,120]
[356970161,1743511838013,-500.0,0.00049315,120]
[356970163,1743511838024,-500.0,0.00049315,120]
[356970165,1743511838033,-500.0,0.00049315,120]
[356970167,1743511838043,-500.0,0.00049315,120]
[356970169,1743511838052,-500.0,0.00049315,120]
[356970171,1743511838062,-500.0,0.00049315,120]
[356970173,1743511838071,-500.0,0.00049315,120]
[356970175,1743511838080,-500.0,0.00049315,120]
[356970177,1743511838089,-500.0,0.00049315,120]
[356970179,1743511838098,-500.0,0.00049315,120]
[356970181,1743511838107,-500.0,0.00049315,120]
[356970183,1743511838123,-500.0,0.00049315,120]
[356970185,1743511838137,-500.0,0.00049315,120]